fUST/lending_fUST_20260528
["ID","MTS","AMOUNT","RATE_DAILY","PERIOD"]
[423220276,1779942644000,-1538.1,0.00011232,2]
[423220266,1779942644000,-1544.76,0.00011232,2]
[423220265,1779942644000,-500.0,0.00011232,2]
[423220268,1779942644000,-1655.62,0.00011232,2]
[423220271,1779942644000,-500.0,0.00011232,2]
[423220270,1779942644000,-500.0,0.00011232,2]
[423220272,1779942644000,-500.0,0.00011232,2]
[423220267,1779942644000,-500.0,0.00011232,2]
[423220269,1779942644000,-1037.22,0.00011232,2]
[423220273,1779942644000,-1013.68,0.00011232,2]
[423220277,1779942644000,-500.0,0.00011232,2]
[423220282,1779942644000,-246.9400497,0.0001141,7]
[423220279,1779942644000,-500.0,0.00011232,2]
[423220281,1779942644000,-3720.19530534,0.000113,2]
[423220280,1779942644000,-947.52,0.00011232,2]
[423220278,1779942644000,-622.82,0.00011232,2]
[423220289,1779942644000,-500.0,0.00011506,2]
[423220287,1779942644000,-981.9054,0.00011506,2]
[423220288,1779942644000,-589.68,0.00011506,2]
[423220286,1779942644000,-575.98,0.00011506,2]
[423220283,1779942644000,-529.35161102,0.0001141,7]
[423220284,1779942644000,-627.26188909,0.00011453,2]
[423220256,1779942644000,-500.0,0.00011232,2]
[423220259,1779942644000,-589.68,0.00011232,2]
[423220285,1779942644000,-500.0,0.00011506,2]
[423220250,1779942644000,-500.0,0.00010958,2]
[423220255,1779942644000,-361.52,0.00011232,2]
[423220230,1779942644000,-589.68,0.00010958,2]
[423220235,1779942644000,-500.0,0.00010958,2]
[423220231,1779942644000,-284.21354698,0.00010958,2]
[423220228,1779942644000,-2556.52766683,0.00010958,2]
[423220229,1779942644000,-380.44891526,0.00010958,2]
[423220233,1779942644000,-500.0,0.00010958,2]
[423220236,1779942644000,-1544.76,0.00010958,2]
[423220226,1779942644000,-920.34996006,0.00010958,2]
[423220238,1779942644000,-1655.62,0.00010958,2]
[423220248,1779942644000,-500.0,0.00010958,2]
[423220290,1779942644000,-500.0,0.00011506,2]
[423220247,1779942644000,-1538.1,0.00010958,2]
[423220237,1779942644000,-500.0,0.00010958,2]
[423220232,1779942644000,-500.0,0.00010958,2]
[423220244,1779942644000,-1013.68,0.00010958,2]
[423220241,1779942644000,-500.0,0.00010958,2]
[423220260,1779942644000,-500.0,0.00011232,2]
[423220253,1779942644000,-556.8636711,0.00011224,2]
[423220257,1779942644000,-575.98,0.00011232,2]
[423220252,1779942644000,-1000.0,0.00011154,2]
[423220251,1779942644000,-947.52,0.00010958,2]
[423220258,1779942644000,-981.9054,0.00011232,2]
[423220246,1779942644000,-500.0,0.00010958,2]
[423220243,1779942644000,-500.0,0.00010958,2]
[423220245,1779942644000,-7674.49,0.00010958,2]
[423220242,1779942644000,-432.8,0.00010958,2]
[423220240,1779942644000,-500.0,0.00010958,2]
[423220249,1779942644000,-622.82,0.00010958,2]
[423220315,1779942645000,-500.0,0.0001178,2]
[423220320,1779942645000,-1655.62,0.0001178,2]
[423220319,1779942645000,-500.0,0.0001178,2]
[423220317,1779942645000,-500.0,0.0001178,2]
[423220318,1779942645000,-1544.76,0.0001178,2]
[423220322,1779942645000,-500.0,0.0001178,2]
[423220321,1779942645000,-1037.22,0.0001178,2]
[423220323,1779942645000,-523.17,0.0001178,2]
[423220326,1779942645000,-7674.49,0.0001178,2]
[423220330,1779942645000,-500.0,0.0001178,2]
[423220327,1779942645000,-500.0,0.0001178,2]
[423220325,1779942645000,-1013.68,0.0001178,2]
[423220329,1779942645000,-1221.6976,0.0001178,2]
[423220331,1779942645000,-622.82,0.0001178,2]
[423220316,1779942645000,-500.0,0.0001178,2]
[423220328,1779942645000,-1538.1,0.0001178,2]
[423220335,1779942645000,-2205.0,0.00011847,2]
[423220333,1779942645000,-947.52,0.0001178,2]
[423220338,1779942645000,-185.0,0.00011847,2]
[423220336,1779942645000,-443.0,0.00011847,2]
[423220324,1779942645000,-500.0,0.0001178,2]
[423220313,1779942645000,-589.68,0.0001178,2]
[423220307,1779942645000,-947.52,0.00011506,2]
[423220311,1779942645000,-500.0,0.0001178,2]
[423220332,1779942645000,-500.0,0.0001178,2]
[423220291,1779942645000,-500.0,0.00011506,2]
[423220293,1779942645000,-1544.76,0.00011506,2]
[423220292,1779942645000,-500.0,0.00011506,2]
[423220296,1779942645000,-1037.22,0.00011506,2]
[423220295,1779942645000,-1655.62,0.00011506,2]
[423220297,1779942645000,-500.0,0.00011506,2]
[423220294,1779942645000,-500.0,0.00011506,2]
[423220303,1779942645000,-1538.1,0.00011506,2]
[423220314,1779942645000,-500.0,0.0001178,2]
[423220304,1779942645000,-500.0,0.00011506,2]
[423220298,1779942645000,-500.0,0.00011506,2]
[423220302,1779942645000,-500.0,0.00011506,2]
[423220300,1779942645000,-1013.68,0.00011506,2]
[423220306,1779942645000,-500.0,0.00011506,2]
[423220305,1779942645000,-622.82,0.00011506,2]
[423220309,1779942645000,-368.1391914,0.00011573,2]
[423220308,1779942645000,-214.65726101,0.00011507,3]
[423220312,1779942645000,-575.98,0.0001178,2]
[423220310,1779942645000,-160.0,0.00011708,2]
[423220299,1779942645000,-500.0,0.00011506,2]
[423220301,1779942645000,-7674.49,0.00011506,2]
[423220334,1779942645000,-648.0,0.00011847,2]
[423220341,1779942645000,-895.12615871,0.00012029,2]
[423220367,1779942645000,-589.68,0.00012328,2]
[423220361,1779942645000,-500.0,0.00012054,2]
[423220366,1779942645000,-575.98,0.00012328,2]
[423220368,1779942645000,-500.0,0.00012328,2]
[423220364,1779942645000,-244.0,0.0001227,2]
[423220369,1779942645000,-500.0,0.00012328,2]
[423220371,1779942645000,-500.0,0.00012328,2]
[423220381,1779942645000,-500.0,0.00012328,2]
[423220378,1779942645000,-7674.49,0.00012328,2]
[423220362,1779942645000,-947.52,0.00012054,2]
[423220373,1779942645000,-500.0,0.00012328,2]
[423220382,1779942645000,-622.82,0.00012328,2]
[423220375,1779942645000,-1037.22,0.00012328,2]
[423220372,1779942645000,-1544.76,0.00012328,2]
[423220374,1779942645000,-1655.62,0.00012328,2]
[423220376,1779942645000,-500.0,0.00012328,2]
[423220379,1779942645000,-597.00353739,0.00012328,2]
[423220383,1779942645000,-500.0,0.00012328,2]
[423220384,1779942645000,-947.52,0.00012328,2]
[423220337,1779942645000,-742.0,0.00011847,2]
[423220377,1779942645000,-1013.68,0.00012328,2]
[423220359,1779942645000,-500.0,0.00012054,2]
[423220380,1779942645000,-1538.1,0.00012328,2]
[423220365,1779942645000,-500.0,0.00012328,2]
[423220339,1779942645000,-986.77243861,0.00011878,7]
[423220363,1779942645000,-1000.0,0.0001227,2]
[423220342,1779942645000,-500.0,0.00012054,2]
[423220340,1779942645000,-2115.28903762,0.00011878,7]
[423220344,1779942645000,-589.68,0.00012054,2]
[423220343,1779942645000,-575.98,0.00012054,2]
[423220346,1779942645000,-500.0,0.00012054,2]
[423220347,1779942645000,-500.0,0.00012054,2]
[423220349,1779942645000,-1544.76,0.00012054,2]
[423220348,1779942645000,-500.0,0.00012054,2]
[423220345,1779942645000,-500.0,0.00012054,2]
[423220353,1779942645000,-278.66,0.00012054,2]
[423220350,1779942645000,-500.0,0.00012054,2]
[423220352,1779942645000,-1037.22,0.00012054,2]
[423220354,1779942645000,-500.0,0.00012054,2]
[423220355,1779942645000,-1013.68,0.00012054,2]
[423220356,1779942645000,-7674.49,0.00012054,2]
[423220357,1779942645000,-500.0,0.00012054,2]
[423220358,1779942645000,-1538.1,0.00012054,2]
[423220351,1779942645000,-1655.62,0.00012054,2]
[423220360,1779942645000,-622.82,0.00012054,2]
[423220370,1779942645000,-500.0,0.00012328,2]
[423220430,1779942646000,-160.48749432,0.00012894,7]
[423220427,1779942646000,-1538.1,0.00012876,2]
[423220425,1779942646000,-1013.68,0.00012876,2]
[423220432,1779942646000,-500.0,0.0001315,2]
[423220423,1779942646000,-1037.22,0.00012876,2]
[423220420,1779942646000,-1544.76,0.00012876,2]
[423220414,1779942646000,-500.0,0.00012876,2]
[423220419,1779942646000,-500.0,0.00012876,2]
[423220418,1779942646000,-500.0,0.00012876,2]
[423220426,1779942646000,-7674.49,0.00012876,2]
[423220417,1779942646000,-500.0,0.00012876,2]
[423220415,1779942646000,-575.98,0.00012876,2]
[423220433,1779942646000,-575.98,0.0001315,2]
[423220451,1779942646000,-350.55025637,0.00013183,2]
[423220424,1779942646000,-500.0,0.00012876,2]
[423220434,1779942646000,-589.68,0.0001315,2]
[423220435,1779942646000,-500.0,0.0001315,2]
[423220431,1779942646000,-160.48749432,0.00013045,14]
[423220429,1779942646000,-947.52,0.00012876,2]
[423220436,1779942646000,-500.0,0.0001315,2]
[423220438,1779942646000,-1544.76,0.0001315,2]
[423220448,1779942646000,-622.82,0.0001315,2]
[423220449,1779942646000,-947.52,0.0001315,2]
[423220450,1779942646000,-1070.6961148,0.00013179,2]
[423220437,1779942646000,-500.0,0.0001315,2]
[423220439,1779942646000,-500.0,0.0001315,2]
[423220413,1779942646000,-456.7998478,0.00012847,2]
[423220428,1779942646000,-622.82,0.00012876,2]
[423220416,1779942646000,-589.68,0.00012876,2]
[423220388,1779942646000,-1000.0,0.000126,2]
[423220421,1779942646000,-500.0,0.00012876,2]
[423220385,1779942646000,-175.27512819,0.00012529,2]
[423220396,1779942646000,-1544.76,0.00012602,2]
[423220395,1779942646000,-500.0,0.00012602,2]
[423220386,1779942646000,-163.54061859,0.00012529,2]
[423220393,1779942646000,-500.0,0.00012602,2]
[423220389,1779942646000,-500.0,0.00012602,2]
[423220387,1779942646000,-160.48749432,0.00012591,2]
[423220392,1779942646000,-182.84259309,0.00012602,2]
[423220390,1779942646000,-575.98,0.00012602,2]
[423220391,1779942646000,-589.68,0.00012602,2]
[423220394,1779942646000,-500.0,0.00012602,2]
[423220397,1779942646000,-500.0,0.00012602,2]
[423220402,1779942646000,-7674.49,0.00012602,2]
[423220412,1779942646000,-323.6741914,0.00012847,2]
[423220406,1779942646000,-452.2,0.00012602,2]
[423220401,1779942646000,-1013.68,0.00012602,2]
[423220399,1779942646000,-1037.22,0.00012602,2]
[423220405,1779942646000,-622.82,0.00012602,2]
[423220408,1779942646000,-906.72101001,0.00012604,2]
[423220407,1779942646000,-947.52,0.00012602,2]
[423220400,1779942646000,-500.0,0.00012602,2]
[423220398,1779942646000,-1655.62,0.00012602,2]
[423220403,1779942646000,-1538.1,0.00012602,2]
[423220409,1779942646000,-160.48749432,0.00012743,7]
[423220410,1779942646000,-214.732361,0.00012745,2]
[423220443,1779942646000,-1037.22,0.0001315,2]
[423220411,1779942646000,-456.7807192,0.00012847,2]
[423220422,1779942646000,-1655.62,0.00012876,2]
[423220404,1779942646000,-641.0518735,0.00012602,2]
[423220444,1779942646000,-500.0,0.0001315,2]
[423220488,1779942646000,-326.0859053,0.00013655,2]
[423220445,1779942646000,-1013.68,0.0001315,2]
[423220480,1779942646000,-194.820821,0.00013558,2]
[423220486,1779942646000,-151.0,0.00013655,2]
[423220483,1779942646000,-525.82538456,0.0001362,2]
[423220489,1779942646000,-456.7807192,0.00013655,2]
[423220485,1779942646000,-228.47921524,0.0001362,2]
[423220487,1779942646000,-278.0774649,0.00013655,2]
[423220484,1779942646000,-490.62185578,0.0001362,2]
[423220490,1779942646000,-213.0999037,0.00013656,2]
[423220502,1779942646000,-589.68,0.00013698,2]
[423220501,1779942646000,-194.16208025,0.00013698,2]
[423220500,1779942646000,-500.0,0.00013698,2]
[423220491,1779942646000,-326.1011568,0.00013669,2]
[423220495,1779942646000,-500.0,0.00013698,2]
[423220482,1779942646000,-416.86349614,0.00013573,2]
[423220497,1779942646000,-575.98,0.00013698,2]
[423220496,1779942646000,-443.42444975,0.00013698,2]
[423220492,1779942646000,-500.0,0.00013698,2]
[423220493,1779942646000,-500.0,0.00013698,2]
[423220494,1779942646000,-500.0,0.00013698,2]
[423220503,1779942646000,-500.0,0.00013698,2]
[423220506,1779942646000,-500.0,0.00013698,2]
[423220507,1779942646000,-1655.62,0.00013698,2]
[423220509,1779942646000,-500.0,0.00013698,2]
[423220505,1779942646000,-1544.76,0.00013698,2]
[423220508,1779942646000,-1037.22,0.00013698,2]
[423220510,1779942646000,-1013.68,0.00013698,2]
[423220504,1779942646000,-500.0,0.00013698,2]
[423220446,1779942646000,-7674.49,0.0001315,2]
[423220498,1779942646000,-500.0,0.00013698,2]
[423220481,1779942646000,-229.641643,0.00013558,2]
[423220499,1779942646000,-500.0,0.00013698,2]
[423220478,1779942646000,-1000.33,0.000135,2]
[423220479,1779942646000,-160.0,0.00013558,2]
[423220447,1779942646000,-1538.1,0.0001315,2]
[423220452,1779942646000,-327.08123719,0.00013183,2]
[423220463,1779942646000,-313.08,0.00013424,2]
[423220456,1779942646000,-942.829297,0.00013287,2]
[423220455,1779942646000,-551.414648,0.00013287,2]
[423220458,1779942646000,-563.19698705,0.00013424,2]
[423220453,1779942646000,-160.48749432,0.00013197,30]
[423220454,1779942646000,-160.0,0.00013287,2]
[423220460,1779942646000,-589.68,0.00013424,2]
[423220462,1779942646000,-500.0,0.00013424,2]
[423220459,1779942646000,-575.98,0.00013424,2]
[423220461,1779942646000,-500.0,0.00013424,2]
[423220457,1779942646000,-160.48749432,0.00013348,60]
[423220441,1779942646000,-1655.62,0.0001315,2]
[423220471,1779942646000,-1538.1,0.00013424,2]
[423220465,1779942646000,-500.0,0.00013424,2]
[423220468,1779942646000,-500.0,0.00013424,2]
[423220467,1779942646000,-1037.22,0.00013424,2]
[423220469,1779942646000,-1013.68,0.00013424,2]
[423220470,1779942646000,-7674.49,0.00013424,2]
[423220476,1779942646000,-189.80030333,0.00013498,2]
[423220477,1779942646000,-160.48749432,0.000135,60]
[423220474,1779942646000,-1000.0,0.00013497,2]
[423220473,1779942646000,-947.52,0.00013424,2]
[423220464,1779942646000,-1544.76,0.00013424,2]
[423220466,1779942646000,-1655.62,0.00013424,2]
[423220472,1779942646000,-622.82,0.00013424,2]
[423220475,1779942646000,-492.0,0.00013497,2]
[423220535,1779942647000,-1544.76,0.00013972,2]
[423220526,1779942647000,-556.8636711,0.00013942,2]
[423220538,1779942647000,-1655.62,0.00013972,2]
[423220537,1779942647000,-277.73,0.00013972,2]
[423220532,1779942647000,-400.44,0.00013972,2]
[423220528,1779942647000,-193.23584338,0.00013943,7]
[423220530,1779942647000,-575.98,0.00013972,2]
[423220529,1779942647000,-661.697578,0.00013951,2]
[423220539,1779942647000,-1037.22,0.00013972,2]
[423220534,1779942647000,-500.0,0.00013972,2]
[423220541,1779942647000,-1013.68,0.00013972,2]
[423220527,1779942647000,-827.349,0.00013942,2]
[423220531,1779942647000,-589.68,0.00013972,2]
[423220525,1779942647000,-616.77510822,0.0001391,2]
[423220522,1779942647000,-654.16247438,0.0001391,2]
[423220524,1779942647000,-456.95843049,0.0001391,2]
[423220516,1779942647000,-1000.0,0.00013699,2]
[423220520,1779942647000,-218.72600624,0.00013901,7]
[423220518,1779942647000,-1186.18013094,0.00013755,2]
[423220517,1779942647000,-188.585652,0.00013699,2]
[423220523,1779942647000,-768.03294798,0.0001391,2]
[423220521,1779942647000,-397.19889868,0.0001391,7]
[423220513,1779942647000,-622.82,0.00013698,2]
[423220514,1779942647000,-947.52,0.00013698,2]
[423220515,1779942647000,-351.5,0.00013699,2]
[423220512,1779942647000,-1538.1,0.00013698,2]
[423220511,1779942647000,-7674.49,0.00013698,2]
[423220540,1779942647000,-500.0,0.00013972,2]
[423220519,1779942647000,-379.60060666,0.00013898,2]
[423220542,1779942647000,-2966.246867,0.00013972,2]
[423220543,1779942647000,-317.22328898,0.00013972,2]
[423220576,1779942647000,-19192.42876822,0.00014228,3]
[423220574,1779942647000,500.0,7.599e-05,2]
[423220575,1779942647000,-368.1946,0.00014228,3]
[423220573,1779942647000,500.0,7.599e-05,2]
[423220572,1779942647000,500.0,7.599e-05,2]
[423220570,1779942647000,-960.04118497,0.00014201,2]
[423220571,1779942647000,-10973.7322076,0.00014228,3]
[423220567,1779942647000,-825.347791,0.00014101,2]
[423220568,1779942647000,-1490.695583,0.00014101,2]
[423220546,1779942647000,-2221.24298882,9.222e-05,2]
[423220562,1779942647000,-4391.01984402,0.00013972,2]
[423220566,1779942647000,-160.0,0.00014101,2]
[423220565,1779942647000,-947.52,0.00013972,2]
[423220564,1779942647000,-622.82,0.00013972,2]
[423220563,1779942647000,-1538.1,0.00013972,2]
[423220561,1779942647000,-561.42029646,0.0001315,2]
[423220569,1779942647000,-817.70309297,0.00014201,2]
[423220559,1779942647000,-500.0,0.00012602,2]
[423220558,1779942647000,-500.0,0.00012328,2]
[423220547,1779942647000,-500.0,9.589e-05,2]
[423220548,1779942647000,-44.0,9.863e-05,2]
[423220550,1779942647000,-500.0,0.00010136,2]
[423220560,1779942647000,-500.0,0.00012876,2]
[423220552,1779942647000,-500.0,0.00010684,2]
[423220545,1779942647000,-2778.75701118,9.222e-05,2]
[423220553,1779942647000,-500.0,0.00010958,2]
[423220549,1779942647000,-456.0,9.863e-05,2]
[423220555,1779942647000,-500.0,0.00011506,2]
[423220554,1779942647000,-500.0,0.00011232,2]
[423220556,1779942647000,-500.0,0.0001178,2]
[423220557,1779942647000,-500.0,0.00012054,2]
[423220551,1779942647000,-500.0,0.0001041,2]
[423220578,1779942666000,-500.0,7.599e-05,2]
[423220577,1779942666000,-500.0,7.599e-05,2]
[423220579,1779942667000,-500.0,7.599e-05,2]
[423220580,1779942667000,-500.0,7.599e-05,2]
[423220582,1779942668000,-275.62895689,7.599e-05,2]
[423220581,1779942668000,-500.0,7.599e-05,2]
[423220583,1779942668000,-224.37104311,7.599e-05,2]
[423220588,1779942669000,-500.0,7.599e-05,2]
[423220587,1779942669000,-275.62895689,7.599e-05,2]
[423220585,1779942669000,-500.0,7.599e-05,2]
[423220586,1779942669000,-224.37104311,7.599e-05,2]
[423220584,1779942669000,-275.62895689,7.599e-05,2]
[423220590,1779942670000,-275.62895689,7.599e-05,2]
[423220589,1779942670000,-224.37104311,7.599e-05,2]
[423220592,1779942670000,-224.37104311,7.599e-05,2]
[423220591,1779942670000,-500.0,7.599e-05,2]
[423220687,1779942780000,4370.11531028,0.0001917,120]
[423220688,1779942795000,-151.0,8.118e-05,10]
[423220689,1779942796000,-151.0,8.118e-05,10]
[423220690,1779942797000,-151.0,8.118e-05,10]
[423220691,1779942800000,-151.0,8.118e-05,10]
[423220696,1779942899000,-151.0,8.118e-05,10]
[423220718,1779943497000,-1000.0,8e-05,2]
[423220719,1779943498000,-1000.0,8e-05,2]
[423220720,1779943499000,-1000.0,8e-05,2]
[423220721,1779943500000,-1000.0,8e-05,2]
[423220722,1779943501000,-1000.0,8e-05,2]
[423220724,1779943534000,-1000.0,8e-05,2]
[423220725,1779943535000,-1000.0,8e-05,2]
[423220726,1779943536000,-1000.0,8e-05,2]
[423220727,1779943537000,-1000.0,8e-05,2]
[423220728,1779943538000,-1000.0,8e-05,2]
[423220742,1779943563000,-1000.0,8e-05,2]
[423220743,1779943564000,-1000.0,8e-05,2]
[423220744,1779943565000,-1000.0,8e-05,2]
[423220745,1779943566000,-1000.0,8e-05,2]
[423220746,1779943567000,-1000.0,8e-05,2]
[423220751,1779943610000,-1733.0,8e-05,2]
[423220754,1779943706000,15686.41767525,0.00019177,120]
[423220798,1779943831000,-283.141748,8.218e-05,2]
[423220786,1779943831000,-1309.63662955,8e-05,2]
[423220785,1779943831000,-3658.35,8e-05,2]
[423220800,1779943831000,-94.65113411,8.218e-05,2]
[423220791,1779943831000,-751.99538502,8.118e-05,10]
[423220790,1779943831000,-194.90359217,8.018e-05,2]
[423220788,1779943831000,-256.88827252,8.002e-05,2]
[423220789,1779943831000,-15.55815215,8.018e-05,2]
[423220796,1779943831000,-247.48369165,8.218e-05,2]
[423220795,1779943831000,-182.80369526,8.218e-05,2]
[423220793,1779943831000,-303.0,8.217e-05,2]
[423220792,1779943831000,-300.0,8.217e-05,2]
[423220787,1779943831000,-32.01337045,8e-05,2]
[423221027,1779943838000,-1310.4917356,8.136e-05,2]
[423221024,1779943838000,-727.8249803,8.136e-05,2]
[423221301,1779943840000,-908.36082376,8.136e-05,2]
[423221302,1779943841000,-1007.28442649,8.136e-05,2]
[423221315,1779943843000,-421.66003832,8.219e-05,2]
[423221307,1779943843000,-1046.03803385,8.136e-05,2]
[423221308,1779943843000,-180.97782278,8.218e-05,2]
[423221316,1779943843000,-78.33996168,8.219e-05,2]
[423221313,1779943843000,-407.40623837,8.219e-05,2]
[423221309,1779943843000,-500.0,8.219e-05,2]
[423221314,1779943843000,-92.59376163,8.219e-05,2]
[423221312,1779943843000,-500.0,8.219e-05,2]
[423221311,1779943843000,-500.0,8.219e-05,2]
[423221317,1779943843000,-500.0,8.219e-05,2]
[423221318,1779943843000,-454.0,8.219e-05,2]
[423221319,1779943843000,-252.15771264,8.219e-05,2]
[423221322,1779943843000,-241.40527722,8.219e-05,2]
[423221320,1779943843000,-387.38228736,8.219e-05,2]
[423221310,1779943843000,-500.0,8.219e-05,2]
[423221339,1779943846000,-768.9475673,8.492e-05,2]
[423221342,1779943846000,-768.9475673,8.492e-05,2]
[423221345,1779943846000,-768.9475673,8.492e-05,2]
[423221344,1779943846000,-768.9475673,8.492e-05,2]
[423221349,1779943846000,-768.9475673,8.492e-05,2]
[423221343,1779943846000,-768.9475673,8.492e-05,2]
[423221341,1779943846000,-768.9475673,8.492e-05,2]
[423221346,1779943846000,-768.9475673,8.492e-05,2]
[423221348,1779943846000,-768.9475673,8.492e-05,2]
[423221350,1779943846000,-768.9475673,8.492e-05,2]
[423221330,1779943846000,-199.90527722,8.219e-05,2]
[423221338,1779943846000,-183.49281125,8.492e-05,2]
[423221336,1779943846000,-610.85,8.491e-05,2]
[423221347,1779943846000,-768.9475673,8.492e-05,2]
[423221337,1779943846000,-500.0,8.491e-05,2]
[423221334,1779943846000,-500.0,8.491e-05,2]
[423221335,1779943846000,-500.0,8.491e-05,2]
[423221331,1779943846000,-300.09472278,8.219e-05,2]
[423221329,1779943846000,-500.0,8.219e-05,2]
[423221332,1779943846000,-263.21,8.219e-05,2]
[423221328,1779943846000,-258.59472278,8.219e-05,2]
[423221340,1779943846000,-355.28856433,8.492e-05,2]
[423221351,1779943846000,-768.9475673,8.492e-05,2]
[423221333,1779943846000,-500.0,8.491e-05,2]
[423221363,1779943846000,-830.46337267,8.492e-05,2]
[423221353,1779943846000,-768.9475673,8.492e-05,2]
[423221374,1779943846000,-70.48934665,8.493e-05,2]
[423221371,1779943846000,-500.0,8.493e-05,2]
[423221368,1779943846000,-500.0,8.493e-05,2]
[423221366,1779943846000,-377.84617773,8.493e-05,2]
[423221373,1779943846000,-429.51065335,8.493e-05,2]
[423221367,1779943846000,-500.0,8.493e-05,2]
[423221369,1779943846000,-500.0,8.493e-05,2]
[423221370,1779943846000,-639.54,8.493e-05,2]
[423221372,1779943846000,-500.0,8.493e-05,2]
[423221365,1779943846000,-500.0,8.493e-05,2]
[423221375,1779943846000,-5683.06185875,8.61e-05,2]
[423221362,1779943846000,-830.46337267,8.492e-05,2]
[423221359,1779943846000,-830.46337267,8.492e-05,2]
[423221360,1779943846000,-830.46337267,8.492e-05,2]
[423221361,1779943846000,-830.46337267,8.492e-05,2]
[423221358,1779943846000,-830.46337267,8.492e-05,2]
[423221357,1779943846000,-830.46337267,8.492e-05,2]
[423221356,1779943846000,-830.46337267,8.492e-05,2]
[423221354,1779943846000,-768.9475673,8.492e-05,2]
[423221352,1779943846000,-768.9475673,8.492e-05,2]
[423221355,1779943846000,-830.46337267,8.492e-05,2]
[423221364,1779943846000,-500.0,8.493e-05,2]
[423221383,1779944472000,-4402.72455989,8e-05,2]
[423221427,1779945031000,-669.85014291,8e-05,2]
[423221515,1779945038000,-725.53568197,8.389e-05,2]
[423221517,1779945038000,-725.53568197,8.389e-05,2]
[423221519,1779945038000,-725.53568197,8.389e-05,2]
[423221521,1779945038000,-725.53568197,8.389e-05,2]
[423221516,1779945038000,-725.53568197,8.389e-05,2]
[423221518,1779945038000,-725.53568197,8.389e-05,2]
[423221512,1779945038000,-300.0,8.387e-05,2]
[423221522,1779945038000,-725.53568197,8.389e-05,2]
[423221526,1779945038000,-725.53568197,8.389e-05,2]
[423221527,1779945038000,-725.53568197,8.389e-05,2]
[423221524,1779945038000,-725.53568197,8.389e-05,2]
[423221528,1779945038000,-725.53568197,8.389e-05,2]
[423221525,1779945038000,-725.53568197,8.389e-05,2]
[423221529,1779945038000,-725.53568197,8.389e-05,2]
[423221530,1779945038000,-725.53568197,8.389e-05,2]
[423221514,1779945038000,-725.53568197,8.389e-05,2]
[423221523,1779945038000,-725.53568197,8.389e-05,2]
[423221513,1779945038000,-333.71209302,8.389e-05,2]
[423221503,1779945038000,-500.0,8.387e-05,2]
[423221520,1779945038000,-725.53568197,8.389e-05,2]
[423221494,1779945038000,-4330.14985709,8e-05,2]
[423221495,1779945038000,-286.2257551,8.045e-05,2]
[423221496,1779945038000,-500.0,8.387e-05,2]
[423221497,1779945038000,-507.82128307,8.387e-05,2]
[423221498,1779945038000,-500.0,8.387e-05,2]
[423221499,1779945038000,-500.0,8.387e-05,2]
[423221500,1779945038000,-500.0,8.387e-05,2]
[423221511,1779945038000,-500.0,8.387e-05,2]
[423221502,1779945038000,-500.0,8.387e-05,2]
[423221506,1779945038000,-421.725404,8.387e-05,2]
[423221505,1779945038000,-400.25408802,8.387e-05,2]
[423221504,1779945038000,-508.15696696,8.387e-05,2]
[423221507,1779945038000,-500.0,8.387e-05,2]
[423221508,1779945038000,-500.0,8.387e-05,2]
[423221509,1779945038000,-500.0,8.387e-05,2]
[423221510,1779945038000,-500.0,8.387e-05,2]
[423221501,1779945038000,-500.0,8.387e-05,2]
[423221533,1779945038000,-500.0,8.39e-05,2]
[423221531,1779945038000,-500.0,8.39e-05,2]
[423221532,1779945038000,-500.0,8.39e-05,2]
[423221552,1779945038000,-16590.5469416,8.435e-05,2]
[423221554,1779945038000,-500.0,8.488e-05,2]
[423221558,1779945038000,-500.0,8.489e-05,2]